bitfinex-derivatives/quotes_BNBF0:USTF0_20250715
["timestamp","ask_amount","ask_price","bid_price","bid_amount"]
[1752604039975,0.96968578,687.92,687.12,0.25304306]
[1752604040178,0.96968578,687.93,687.12,0.25304306]
[1752604040475,0.96968578,687.94,687.12,0.25304306]
[1752604041175,0.96968578,687.95,687.12,0.25304306]
[1752604041378,0.96968578,687.94,687.12,0.25304306]
[1752604042177,0.96968578,687.95,687.12,0.25304306]
[1752604042378,0.96968578,687.94,687.12,0.25304306]
[1752604043076,0.96968578,687.95,687.12,0.25304306]
[1752604043376,0.96968578,687.94,687.12,0.25304306]
[1752604046377,0.96968578,687.93,687.12,0.25304306]
[1752604046778,0.96968578,687.94,687.12,0.25304306]
[1752604047082,0.96968578,687.93,687.12,0.25304306]
[1752604047782,0.96968578,687.92,687.12,0.25304306]
[1752604048383,0.96968578,687.91,687.12,0.25304306]
[1752604048884,0.96968578,688.02,687.12,0.25304306]
[1752604050081,0.96968578,688.01,687.12,0.25304306]
[1752604050384,0.96968578,688.0,687.12,0.25304306]
[1752604051387,0.96968578,687.99,687.12,0.25304306]
[1752604051586,0.96968578,687.98,687.12,0.25304306]
[1752604052384,0.96968578,687.97,687.12,0.25304306]
[1752604052986,0.96968578,687.94,687.12,0.25304306]
[1752604053486,0.96968578,687.93,687.12,0.25304306]
[1752604053788,0.96968578,687.94,687.12,0.25304306]
[1752604053987,1.9393715,688.21,687.12,0.25304306]
[1752604053988,0.96968578,687.95,687.12,0.25304306]
[1752604054394,0.96968578,687.94,687.12,0.25304306]
[1752604054688,0.96968578,687.96,687.12,0.25304306]
[1752604055289,0.96968578,687.94,687.12,0.25304306]
[1752604056492,0.96968578,687.92,687.12,0.25304306]
[1752604056992,0.96968578,687.92,686.81,0.96878456]
[1752604057192,0.96968578,687.91,687.03,0.25313693]
[1752604057391,0.96968578,687.9,687.03,0.25313693]
[1752604057690,0.96968578,687.71,687.03,0.25313693]
[1752604058190,0.96968578,687.72,687.03,0.25313693]
[1752604058389,0.96968578,687.67,687.03,0.25313693]
[1752604059188,0.96968578,687.69,687.03,0.25313693]
[1752604059392,0.96968578,687.66,687.03,0.25313693]
[1752604060189,0.96968578,687.67,687.03,0.25313693]
[1752604060389,0.96968578,687.64,687.03,0.25313693]
[1752604061194,0.96968578,687.65,687.03,0.25313693]
[1752604061392,0.96968578,687.63,687.03,0.25313693]
[1752604061793,0.96968578,687.61,687.03,0.25313693]
[1752604062200,0.96968578,687.62,687.03,0.25313693]
[1752604064403,0.96968578,687.59,687.03,0.25313693]
[1752604064607,0.96968578,687.59,686.68,0.96878456]
[1752604064807,0.96968578,687.64,686.93,0.25319771]
[1752604065007,0.96968578,687.63,686.93,0.25319771]
[1752604065207,0.96968578,687.64,686.93,0.25319771]
[1752604065508,0.96968578,687.64,686.63,0.96878456]
[1752604065707,0.96968578,687.56,686.56,0.96878456]
[1752604066003,0.96968578,687.53,686.85,0.25321245]
[1752604066506,0.96968578,687.48,686.85,0.25321245]
[1752604066707,0.96968578,687.45,686.85,0.25321245]
[1752604067409,0.96968578,687.38,686.85,0.25321245]
[1752604068010,0.96968578,687.36,686.42,0.96878456]
[1752604068305,0.96968578,687.38,686.41,0.96878456]
[1752604068506,0.96968578,687.37,686.41,0.96878456]
[1752604068709,0.96968578,687.37,686.65,0.25328709]
[1752604068910,0.96968578,687.32,686.65,0.25328709]
[1752604069218,0.96968578,687.34,686.65,0.25328709]
[1752604069411,0.96968578,687.33,686.65,0.25328709]
[1752604070207,0.96968578,687.35,686.65,0.25328709]
[1752604070411,0.96968578,687.34,686.65,0.25328709]
[1752604070708,0.96968578,687.37,686.65,0.25328709]
[1752604071008,0.96968578,687.41,686.65,0.25328709]
[1752604071208,0.96968578,687.49,686.65,0.25328709]
[1752604071813,0.96968578,687.6,686.65,0.25328709]
[1752604072010,0.96968578,687.58,686.65,0.25328709]
[1752604072209,0.96968578,687.59,686.65,0.25328709]
[1752604072409,0.96968578,687.57,686.65,0.25328709]
[1752604073112,0.96968578,687.59,686.65,0.25328709]
[1752604073415,0.96968578,687.58,686.65,0.25328709]
[1752604073813,0.96968578,687.59,686.65,0.25328709]
[1752604074010,0.96968578,687.57,686.65,0.25328709]
[1752604074214,0.96968578,687.58,686.65,0.25328709]
[1752604074414,0.96968578,687.57,686.65,0.25328709]
[1752604075216,0.96968578,687.58,686.65,0.25328709]
[1752604075715,0.96968578,687.57,686.65,0.25328709]
[1752604077312,0.96968578,687.58,686.65,0.25328709]
[1752604077613,0.96968578,687.57,686.65,0.25328709]
[1752604078114,0.96968578,687.6,686.65,0.25328709]
[1752604078618,0.96968578,687.61,686.65,0.25328709]
[1752604079819,0.96968578,687.6,686.65,0.25328709]
[1752604080114,0.96968578,687.59,686.65,0.25328709]
[1752604082224,0.96968578,687.58,686.65,0.25328709]
[1752604082416,0.96968578,687.59,686.65,0.25328709]
[1752604082816,0.96968578,687.58,686.65,0.25328709]
[1752604083120,3.2322859,688.84,686.65,0.25328709]
[1752604083121,0.96968578,687.59,686.65,0.25328709]
[1752604084325,0.96968578,687.61,686.65,0.25328709]
[1752604088024,0.96968578,687.59,686.65,0.25328709]
[1752604088224,0.96968578,687.6,686.65,0.25328709]
[1752604088422,0.96968578,687.61,686.65,0.25328709]
[1752604088626,0.96968578,687.59,686.65,0.25328709]
[1752604088926,0.96968578,687.6,686.65,0.25328709]
[1752604089121,3.2322859,688.7,686.65,0.25328709]
[1752604089122,0.96968578,687.58,686.65,0.25328709]
[1752604090529,0.96968578,687.62,686.65,0.25328709]
[1752604090824,0.96968578,687.67,686.65,0.25328709]
[1752604091024,0.96968578,687.62,686.65,0.25328709]
[1752604092226,0.96968578,687.61,686.65,0.25328709]
[1752604093431,0.96968578,687.6,686.65,0.25328709]
[1752604093629,0.96968578,687.61,686.65,0.25328709]
[1752604095232,0.96968578,687.6,686.65,0.25328709]
[1752604095432,0.96968578,687.59,686.65,0.25328709]
[1752604096129,0.96968578,687.6,686.65,0.25328709]
[1752604096334,0.96968578,687.59,686.65,0.25328709]
[1752604097235,1.9393715,687.89,686.65,0.25328709]
[1752604097236,0.96968578,687.58,686.65,0.25328709]
[1752604098127,0.96968578,687.57,686.65,0.25328709]
[1752604098530,0.96968578,687.56,686.65,0.25328709]
[1752604099133,0.96968578,687.55,686.65,0.25328709]
[1752604101132,0.96968578,687.54,686.65,0.25328709]
[1752604102437,0.96968578,687.53,686.65,0.25328709]
[1752604103333,0.96968578,687.52,686.65,0.25328709]
[1752604103539,0.96968578,687.5,686.65,0.25328709]
[1752604104136,0.96968578,687.51,686.65,0.25328709]
[1752604104438,0.96968578,687.5,686.65,0.25328709]
[1752604104638,3.2322859,688.25,686.65,0.25328709]
[1752604104639,0.96968578,687.51,686.65,0.25328709]
[1752604105141,0.96968578,687.5,686.65,0.25328709]
[1752604105838,0.96968578,687.53,686.65,0.25328709]
[1752604107139,0.96968578,687.54,686.65,0.25328709]
[1752604108042,4.5252003,688.73,686.65,0.25328709]
[1752604108043,0.96968578,687.53,686.65,0.25328709]
[1752604109140,0.96968578,687.52,686.65,0.25328709]
[1752604109339,0.96968578,687.52,686.65,1.22207165]
[1752604109839,0.96968578,687.57,686.65,0.25328709]
[1752604110045,0.96968578,687.7,686.78,0.96878456]
[1752604110244,0.96968578,687.69,686.78,0.96878456]
[1752604110444,0.96968578,687.73,686.81,0.96878456]
[1752604110841,0.96968578,687.73,686.82,0.96878456]
[1752604111042,0.97614321,687.73,686.82,0.97492467]
[1752604111341,0.97614321,687.72,686.83,0.97492467]
[1752604111645,0.97614321,687.74,686.81,0.97492467]
[1752604111845,0.97614321,687.83,686.9,0.97492467]
[1752604112240,0.97614321,687.82,686.91,0.97492467]
[1752604112445,0.97614321,687.83,686.9,0.97492467]
[1752604113143,0.97614321,687.82,686.91,0.97492467]
[1752604113447,0.97614321,687.83,686.9,0.97492467]
[1752604114244,0.97614321,687.82,686.91,0.97492467]
[1752604114449,0.97614321,687.83,686.9,0.97492467]
[1752604115143,0.97614321,687.82,686.91,0.97492467]
[1752604115348,0.97614321,687.84,686.9,0.97492467]
[1752604116546,0.97614321,687.84,686.89,0.97492467]
[1752604116847,0.97614321,687.82,686.91,0.97492467]
[1752604117746,0.97614321,687.81,686.9,0.97492467]
[1752604117951,0.97614321,687.81,686.89,0.97492467]
[1752604118152,0.97614321,687.78,686.92,0.97492467]
[1752604118552,0.97614321,687.78,686.91,0.97492467]
[1752604119153,0.97614321,687.79,686.91,0.97492467]
[1752604119449,0.97614321,687.79,686.9,0.97492467]
[1752604119850,0.97614321,687.8,686.9,0.97492467]
[1752604120049,0.97614321,687.86,686.86,0.97492467]
[1752604120552,0.97614321,687.87,686.85,0.97492467]
[1752604122350,0.97614321,687.88,686.84,0.97492467]
[1752604122954,0.97614321,687.87,686.85,0.97492467]
[1752604123251,0.97614321,687.88,686.84,0.97492467]
[1752604124555,0.97614321,687.89,686.84,0.97492467]
[1752604124856,0.97614321,687.88,686.84,0.97492467]
[1752604125057,0.97614321,687.89,686.84,0.97492467]
[1752604125357,0.97614321,687.89,686.83,0.97492467]
[1752604126260,0.97614321,687.83,686.86,0.97492467]
[1752604126456,0.97614321,687.81,686.84,0.97492467]
[1752604126657,0.97614321,687.81,686.83,0.97492467]
[1752604127360,0.97614321,687.73,686.79,0.97492467]
[1752604128062,0.97614321,687.66,686.72,0.97492467]
[1752604128256,0.97614321,687.65,686.71,0.97492467]
[1752604129256,0.97614321,687.64,686.71,0.97492467]
[1752604129757,0.25310195,687.91,686.65,0.25328709]
[1752604129758,0.97614321,687.65,686.7,0.97492467]
[1752604129955,0.97614321,687.65,686.71,0.97492467]
[1752604131161,0.97614321,687.64,686.71,0.97492467]
[1752604131461,0.97614321,687.64,686.72,0.97492467]
[1752604131761,0.97614321,687.65,686.72,0.97492467]
[1752604132161,0.97614321,687.64,686.72,0.97492467]
[1752604132857,0.97614321,687.65,686.72,0.97492467]
[1752604134260,0.97614321,687.63,686.74,0.97492467]
[1752604135459,0.97614321,687.63,686.75,0.97492467]
[1752604136264,0.97614321,687.64,686.77,0.97492467]
[1752604136665,0.97614321,687.64,686.78,0.97492467]
[1752604137364,0.97614321,687.68,686.82,0.97492467]
[1752604137663,0.97614321,687.67,686.83,0.97492467]
[1752604137862,0.97614321,687.68,686.82,0.97492467]
[1752604138062,0.97614321,687.71,686.85,0.97492467]
[1752604139167,0.97614321,687.7,686.85,0.97492467]
[1752604142471,0.97614321,687.7,686.86,0.97492467]
[1752604143267,0.97614321,687.69,686.86,0.97492467]
[1752604144368,0.97614321,687.69,686.87,0.97492467]
[1752604144873,0.97614321,687.67,686.88,0.97492467]
[1752604146273,0.97614321,687.66,686.88,0.97492467]
[1752604146473,0.97614321,687.66,686.75,1.2917127]
[1752604146474,0.97614321,687.66,686.89,0.97492467]
[1752604147275,0.97614321,687.65,686.89,0.97492467]
[1752604147572,0.97614321,687.64,686.9,0.97492467]
[1752604147772,0.97614321,687.62,686.91,0.97492467]
[1752604148473,0.97614321,687.63,686.92,0.97492467]
[1752604149176,0.97614321,687.62,686.92,0.97492467]
[1752604149577,0.97614321,687.61,686.92,0.97492467]
[1752604150477,0.97614321,687.61,686.93,0.97492467]
[1752604151278,0.97614321,687.59,686.93,0.97492467]
[1752604151876,0.97614321,687.63,686.91,0.97492467]
[1752604152076,0.97614321,687.67,686.94,0.97492467]
[1752604152281,0.97614321,687.66,686.94,0.97492467]
[1752604153679,0.97614321,687.67,686.93,0.97492467]
[1752604155479,0.97614321,687.67,686.94,0.97492467]
[1752604156180,0.97614321,687.66,686.94,0.97492467]
[1752604158485,0.97614321,687.66,686.95,0.97492467]
[1752604159184,0.97614321,687.65,686.95,0.97492467]
[1752604159586,0.97614321,687.64,686.96,0.97492467]
[1752604161182,0.97614321,687.63,686.97,0.97492467]
[1752604162187,0.97614321,687.62,686.97,0.97492467]
[1752604162385,0.97614321,687.62,686.98,0.97492467]
[1752604162688,0.97614321,687.62,686.97,0.97492467]
[1752604163486,0.97614321,687.61,686.98,0.97492467]
[1752604164483,0.97614321,687.6,686.99,0.97492467]
[1752604165389,0.97614321,687.6,687.0,0.97492467]
[1752604166085,0.97614321,687.6,686.65,0.25328709]
[1752604166086,0.97614321,687.63,686.97,0.97492467]
[1752604166289,0.97614321,687.63,686.98,0.97492467]
[1752604167487,0.97614321,687.62,686.98,0.97492467]
[1752604168390,0.97614321,687.61,686.99,0.97492467]
[1752604169086,0.97614321,687.62,687.0,0.97492467]
[1752604169291,0.97614321,687.63,686.99,0.97492467]
[1752604169496,0.97614321,687.62,687.0,0.97492467]
[1752604170294,0.97614321,687.64,686.98,0.97492467]
[1752604170494,0.97614321,687.65,686.98,0.97492467]
[1752604172395,0.97614321,687.65,686.99,0.97492467]
[1752604172697,0.97614321,687.64,686.99,0.97492467]
[1752604175895,0.97614321,687.66,686.97,0.97492467]
[1752604176190,0.97614321,687.66,686.98,0.97492467]
[1752604179194,0.97614321,687.65,686.98,0.97492467]
[1752604180198,0.97614321,687.64,686.99,0.97492467]
[1752604181903,0.97614321,687.63,687.0,0.97492467]
[1752604182100,0.97614321,687.55,687.04,0.97492467]
[1752604182501,0.97614321,687.54,687.05,0.97492467]
[1752604182898,0.97614321,687.53,687.05,0.97492467]
[1752604184303,0.97614321,687.62,686.99,0.97492467]
[1752604184500,0.97614321,687.62,687.0,0.97492467]
[1752604188906,0.97614321,687.61,687.0,0.97492467]
[1752604189110,0.97614321,687.58,686.97,0.97492467]
[1752604189519,0.97614321,687.59,686.96,0.97492467]
[1752604189711,0.97614321,687.53,686.9,0.97492467]
[1752604190516,0.97614321,687.52,686.9,0.97492467]
[1752604190716,0.97614321,687.53,686.9,0.97492467]
[1752604191417,0.97614321,687.52,686.91,0.97492467]
[1752604191714,0.97614321,687.53,686.91,0.97492467]
[1752604192416,0.97614321,687.52,686.91,0.97492467]
[1752604194217,0.97614321,687.47,686.94,0.97492467]
[1752604194416,0.97614321,687.49,686.92,0.97492467]
[1752604195213,0.97614321,687.48,686.93,0.97492467]
[1752604195417,0.97614321,687.48,686.94,0.97492467]
[1752604196517,0.97614321,687.46,686.92,0.97492467]
[1752604197620,0.25310195,688.01,686.93,0.97492467]
[1752604197621,0.97614321,687.44,686.93,0.97492467]
[1752604197917,0.97614321,687.45,686.93,0.97492467]
[1752604198817,0.97614321,687.44,686.92,0.97492467]
[1752604199817,0.97614321,687.47,686.9,0.97492467]
[1752604201019,0.98091192,687.47,686.9,0.98084464]
[1752604201319,0.98091192,687.43,686.84,0.98084464]
[1752604201523,0.98091192,687.42,686.84,0.98084464]
[1752604201922,0.98091192,687.43,686.83,0.98084464]
[1752604202121,0.98091192,687.42,686.85,0.98084464]
[1752604202322,0.98091192,687.43,686.84,0.98084464]
[1752604202723,0.98091192,687.45,686.83,0.98084464]
[1752604202922,0.98091192,687.43,686.84,0.98084464]
[1752604203326,0.98091192,687.44,686.83,0.98084464]
[1752604204026,0.98091192,687.44,686.84,0.98084464]
[1752604204321,0.98091192,687.44,686.83,0.98084464]
[1752604205422,0.98091192,687.45,686.83,0.98084464]
[1752604206326,0.98091192,687.44,686.83,0.98084464]
[1752604207130,0.98091192,687.43,686.83,0.98084464]
[1752604207329,0.98091192,687.44,686.83,0.98084464]
[1752604208226,0.98091192,687.52,686.91,0.98084464]
[1752604208526,0.98091192,687.54,686.93,0.98084464]
[1752604210731,0.98091192,687.52,686.92,0.98084464]
[1752604211035,0.98091192,687.51,686.9,0.98084464]
[1752604212537,0.98091192,687.51,686.89,0.98084464]
[1752604212834,0.98091192,687.5,686.9,0.98084464]
[1752604215437,0.98091192,687.5,686.91,0.98084464]
[1752604215639,0.98091192,687.5,686.9,0.98084464]
[1752604217141,0.98091192,687.49,686.91,0.98084464]
[1752604218338,0.98091192,687.49,686.9,0.98084464]
[1752604218840,0.98091192,687.5,686.9,0.98084464]
[1752604220441,0.98091192,687.51,686.89,0.98084464]
[1752604221438,0.98091192,687.5,686.9,0.98084464]
[1752604221838,0.98091192,687.51,686.9,0.98084464]
[1752604222241,0.98091192,687.5,686.9,0.98084464]
[1752604222439,0.98091192,687.48,686.88,0.98084464]
[1752604223645,0.98091192,687.48,686.87,0.98084464]
[1752604224544,0.98091192,687.47,686.88,0.98084464]
[1752604224845,0.98091192,687.46,686.88,0.98084464]
[1752604227148,0.98091192,687.47,686.87,0.98084464]
[1752604227343,0.98091192,687.46,686.88,0.98084464]
[1752604227749,0.98091192,687.44,686.89,0.98084464]
[1752604228051,0.98091192,687.43,686.9,0.98084464]
[1752604228553,0.98091192,687.42,686.89,0.98084464]
[1752604229050,0.98091192,687.43,686.88,0.98084464]
[1752604229443,0.98091192,687.43,686.89,0.98084464]
[1752604229646,0.98091192,687.43,686.88,0.98084464]
[1752604229850,0.98091192,687.37,686.82,0.98084464]
[1752604230349,0.98091192,687.36,686.79,0.98084464]
[1752604230647,0.98091192,687.37,686.78,0.98084464]
[1752604231043,0.98091192,687.37,686.79,0.98084464]
[1752604231250,0.98091192,687.36,686.79,0.98084464]
[1752604231444,0.98091192,687.36,686.78,0.98084464]
[1752604231949,0.98091192,687.3,686.73,0.98084464]
[1752604232249,0.98091192,687.31,686.72,0.98084464]
[1752604233245,0.98091192,687.31,686.71,0.98084464]
[1752604233848,0.98091192,687.33,686.71,0.98084464]
[1752604234049,0.98091192,687.32,686.72,0.98084464]
[1752604234445,0.98091192,687.39,686.67,0.98084464]
[1752604234651,0.98091192,687.42,686.69,0.98084464]
[1752604234949,0.98091192,687.41,686.69,0.98084464]
[1752604235248,0.98091192,687.41,686.68,0.98084464]
[1752604235744,0.98091192,687.41,686.69,0.98084464]
[1752604236350,0.98091192,687.42,686.68,0.98084464]
[1752604236646,0.98091192,687.43,686.67,0.98084464]
[1752604237249,0.98091192,687.42,686.68,0.98084464]
[1752604237446,0.98091192,687.43,686.67,0.98084464]
[1752604238147,0.98091192,687.41,686.66,0.98084464]
[1752604238347,0.98091192,687.41,686.65,0.25328709]
[1752604238348,0.98091192,687.36,686.69,0.98084464]
[1752604239552,0.98091192,687.37,686.68,0.98084464]
[1752604240150,0.98091192,687.39,686.71,0.98084464]
[1752604241657,0.98091192,687.39,686.7,0.98084464]
[1752604242258,0.98091192,687.39,686.71,0.98084464]
[1752604242957,0.98091192,687.39,686.7,0.98084464]
[1752604243158,0.98091192,687.39,686.71,0.98084464]
[1752604243858,0.98091192,687.36,686.71,0.98084464]
[1752604244052,0.98091192,687.36,686.65,0.25328709]
[1752604244053,0.98091192,687.35,686.7,0.98084464]
[1752604245962,0.98091192,687.35,686.71,0.98084464]
[1752604246459,0.98091192,687.35,686.72,0.98084464]
[1752604246759,0.25310195,688.01,686.74,0.98084464]
[1752604246760,0.98091192,687.37,686.74,0.98084464]
[1752604247963,0.98091192,687.38,686.74,0.98084464]
[1752604248363,0.25310195,688.01,686.74,0.98084464]
[1752604248364,0.98091192,687.37,686.74,0.98084464]
[1752604249466,0.98091192,687.35,686.75,0.98084464]
[1752604251064,0.98091192,687.35,686.65,0.25328709]
[1752604251065,0.98091192,687.33,686.74,0.98084464]
[1752604251264,0.98091192,687.33,686.75,0.98084464]
[1752604251960,0.98091192,687.35,686.73,0.98084464]
[1752604252361,0.98091192,687.33,686.72,0.98084464]
[1752604252865,0.98091192,687.27,686.67,0.98084464]
[1752604253564,0.98091192,687.27,686.66,0.98084464]
[1752604253963,0.98091192,687.26,686.66,0.98084464]
[1752604254269,0.98091192,687.27,686.66,0.98084464]
[1752604256267,0.98091192,687.27,686.65,1.23413173]
[1752604257369,0.98091192,687.28,686.65,1.23413173]
[1752604259268,0.98091192,687.29,686.65,1.23413173]
[1752604259466,0.98091192,687.28,686.65,1.23413173]
[1752604259871,0.98091192,687.2,686.65,0.25328709]
[1752604261268,0.98091192,687.15,686.65,0.25328709]
[1752604261573,0.98091192,687.16,686.65,0.25328709]
[1752604262172,0.98091192,687.14,686.65,0.25328709]
[1752604262472,0.98091192,687.14,685.7,3.2292818]
[1752604262473,0.98091192,687.12,686.55,0.25331567]
[1752604262670,0.98091192,687.07,686.55,0.25331567]
[1752604263074,0.98091192,687.0,686.55,0.25331567]
[1752604263270,0.98091192,687.01,686.55,0.25331567]
[1752604263471,0.98091192,687.02,686.55,0.25331567]
[1752604263976,0.98091192,686.98,686.42,0.25336823]
[1752604264171,0.98091192,686.99,686.42,0.25336823]
[1752604264677,0.98091192,686.91,686.15,0.98084464]
[1752604265170,0.98091192,686.94,686.35,0.25339498]
[1752604265375,0.98091192,686.93,686.35,0.25339498]
[1752604265671,0.98091192,687.08,686.35,0.25339498]
[1752604265871,0.98091192,687.18,686.35,0.25339498]
[1752604266272,0.98091192,687.19,686.35,0.25339498]
[1752604266576,0.98091192,687.14,686.35,0.25339498]
[1752604266973,3.2322859,688.36,686.35,0.25339498]
[1752604266974,0.98091192,687.11,686.35,0.25339498]
[1752604267177,0.98091192,687.12,686.35,0.25339498]
[1752604267376,0.98091192,687.13,686.35,0.25339498]
[1752604267576,3.2322859,688.26,686.35,0.25339498]
[1752604267577,0.98091192,687.05,686.35,0.25339498]
[1752604267778,0.98091192,686.94,686.35,0.25339498]
[1752604268077,0.98091192,686.95,686.27,0.25342359]
[1752604269174,0.98091192,686.98,686.27,0.25342359]
[1752604269876,0.98091192,686.97,686.27,0.25342359]
[1752604270178,0.98091192,686.99,686.27,0.25342359]
[1752604270580,0.98091192,687.07,686.27,0.25342359]
[1752604270775,0.98091192,687.13,686.27,0.25342359]
[1752604270981,0.98091192,687.17,686.27,0.25342359]
[1752604272082,0.98091192,687.18,686.27,0.25342359]
[1752604272584,0.98091192,687.17,686.27,0.25342359]
[1752604272882,0.98091192,687.16,686.27,0.25342359]
[1752604273082,0.98091192,687.15,686.27,0.25342359]
[1752604273382,0.98091192,687.17,686.27,0.25342359]
[1752604273877,3.2322859,688.07,686.27,0.25342359]
[1752604273878,0.98091192,687.09,686.27,0.25342359]
[1752604274076,0.98091192,687.1,686.27,0.25342359]
[1752604274778,0.98091192,687.11,686.27,0.25342359]
[1752604275083,0.98091192,687.1,686.27,0.25342359]
[1752604275282,0.98091192,687.11,686.27,0.25342359]
[1752604276182,0.98091192,687.13,686.27,0.25342359]
[1752604277181,3.2322859,688.09,686.27,0.25342359]
[1752604277182,0.98091192,687.14,686.27,0.25342359]
[1752604277384,0.98091192,687.13,686.27,0.25342359]
[1752604277586,0.98091192,687.14,686.27,0.25342359]
[1752604280085,0.98091192,687.15,686.27,0.25342359]
[1752604283285,0.98091192,687.14,686.27,0.25342359]
[1752604284580,0.98091192,687.13,686.27,0.25342359]
[1752604286081,0.98091192,687.08,686.27,0.25342359]
[1752604286282,0.98091192,687.12,686.27,0.25342359]
[1752604286481,0.98091192,687.12,685.97,0.98084464]
[1752604286680,0.98091192,687.12,686.17,0.25343927]
[1752604287680,0.98091192,687.13,686.17,0.25343927]
[1752604287882,0.98091192,687.12,686.17,0.25343927]
[1752604288083,0.98091192,687.13,686.17,0.25343927]
[1752604288284,0.98091192,687.12,686.17,0.25343927]
[1752604288489,0.98091192,687.13,686.17,0.25343927]
[1752604289084,0.98091192,687.18,686.17,0.25343927]
[1752604289584,0.98091192,687.11,686.17,0.25343927]
[1752604290089,0.98091192,687.09,686.17,0.25343927]
[1752604290384,0.98091192,687.06,686.17,0.25343927]
[1752604291989,0.98091192,687.05,686.17,0.25343927]
[1752604293089,0.98091192,687.06,686.17,0.25343927]
[1752604293286,0.98091192,687.05,686.17,0.25343927]
[1752604293991,0.98091192,687.08,686.17,0.25343927]
[1752604294187,0.98091192,687.09,686.17,0.25343927]
[1752604294490,0.98091192,687.08,686.17,0.25343927]
[1752604294885,0.98091192,687.09,686.17,0.25343927]
[1752604296793,0.98091192,687.05,686.17,0.25343927]
[1752604296992,0.98091192,687.04,685.79,0.98084464]
[1752604297289,0.98091192,687.05,686.09,0.25347804]
[1752604297493,0.98091192,686.98,686.09,0.25347804]
[1752604298190,0.98091192,686.99,686.09,0.25347804]
[1752604298391,0.98091192,686.98,686.09,0.25347804]
[1752604298590,0.98091192,686.99,686.09,0.25347804]
[1752604299691,0.98091192,686.98,686.09,0.25347804]
[1752604299893,0.98091192,686.97,686.09,0.25347804]
[1752604300189,0.98091192,686.97,685.96,0.25350389]
[1752604300390,1.2929143,687.1,685.96,0.25350389]
[1752604300391,0.98091192,686.96,685.96,0.25350389]
[1752604300694,0.98091192,686.98,685.96,0.25350389]
[1752604300893,1.2929143,687.11,685.96,0.25350389]
[1752604300894,0.98091192,686.99,685.96,0.25350389]
[1752604302000,0.98091192,686.95,685.96,0.25350389]
[1752604302199,0.98091192,686.97,685.96,0.25350389]
[1752604302493,0.98091192,686.95,685.96,0.25350389]
[1752604302694,0.98091192,686.94,685.96,0.25350389]
[1752604302895,0.98091192,686.9,685.96,0.25350389]
[1752604303099,0.98091192,686.88,685.96,0.25350389]
[1752604303300,0.98091192,686.87,685.96,0.25350389]
[1752604304795,0.98091192,686.83,685.96,0.25350389]
[1752604304996,0.98091192,686.85,685.96,0.25350389]
[1752604305495,0.98091192,686.84,685.96,0.25350389]
[1752604306296,0.98091192,686.82,685.96,0.25350389]
[1752604306496,0.98091192,686.81,685.96,0.25350389]
[1752604306896,0.98091192,686.78,685.96,0.25350389]
[1752604307302,0.98091192,686.77,685.96,0.25350389]
[1752604307596,0.98091192,686.73,685.96,0.25350389]
[1752604307797,0.98091192,686.72,685.96,0.25350389]
[1752604308400,0.98091192,686.7,685.96,0.25350389]
[1752604309003,0.98091192,686.75,685.96,0.25350389]
[1752604309198,0.98091192,686.83,685.96,0.25350389]
[1752604309502,0.98091192,686.82,685.96,0.25350389]
[1752604309697,0.98091192,686.87,685.96,0.25350389]
[1752604310100,0.98091192,686.84,685.96,0.25350389]
[1752604310299,0.98091192,686.83,685.96,0.25350389]
[1752604310799,0.98091192,686.86,685.96,0.25350389]
[1752604311301,0.98091192,686.93,685.96,0.25350389]
[1752604312402,0.98091192,686.94,685.96,0.25350389]
[1752604313400,0.98091192,686.93,685.96,0.25350389]
[1752604313699,0.98091192,686.92,685.96,0.25350389]
[1752604314104,0.98091192,686.93,685.96,0.25350389]
[1752604314300,0.98091192,686.92,685.96,0.25350389]
[1752604314906,0.98091192,686.93,685.96,0.25350389]
[1752604315098,0.98091192,686.92,685.96,0.25350389]
[1752604315304,0.98091192,686.91,685.96,0.25350389]
[1752604315800,0.98091192,686.9,685.96,0.25350389]
[1752604316404,0.98091192,686.88,685.96,0.25350389]
[1752604317304,0.98091192,686.86,685.96,0.25350389]
[1752604318204,0.98091192,686.88,685.96,0.25350389]
[1752604318504,1.9393715,687.19,685.96,0.25350389]
[1752604318505,0.98091192,686.86,685.96,0.25350389]
[1752604318698,0.98091192,686.84,685.96,0.25350389]
[1752604318903,0.98091192,686.78,685.96,0.25350389]
[1752604319198,0.98091192,686.68,685.96,0.25350389]
[1752604319500,0.98091192,686.62,685.96,0.25350389]
[1752604320004,0.98091192,686.6,685.96,0.25350389]
[1752604320202,0.98091192,686.59,685.96,0.25350389]
[1752604320405,0.98091192,686.6,685.96,0.25350389]
[1752604320706,0.98091192,686.57,685.96,0.25350389]
[1752604321001,0.98091192,686.62,685.71,0.98084464]
[1752604321200,0.98091192,686.6,685.73,0.98084464]
[1752604321400,0.98091192,686.6,685.86,0.25356854]
[1752604321900,0.98091192,686.53,685.86,0.25356854]
[1752604322105,0.98091192,686.57,685.86,0.25356854]
[1752604322305,0.98091192,686.56,685.86,0.25356854]
[1752604322606,0.98091192,686.56,685.63,0.98084464]
[1752604322906,0.98091192,686.56,684.59,3.2292818]
[1752604322907,0.98091192,686.48,685.75,0.25359903]
[1752604323406,0.98091192,686.49,685.75,0.25359903]
[1752604323806,0.98091192,686.54,685.75,0.25359903]
[1752604324309,0.98091192,686.5,685.75,0.25359903]
[1752604324505,0.98091192,686.52,685.75,0.25359903]